fUSD/lending_fUSD_20251115
["ID","MTS","AMOUNT","RATE_DAILY","PERIOD"]
[394061724,1763238632116,-500.0,0.00016272,2]
[394061726,1763238632125,-500.0,0.00016272,2]
[394061728,1763238632134,-500.0,0.00016272,2]
[394061729,1763238632143,-500.0,0.00016272,2]
[394061731,1763238632152,-500.0,0.00016272,2]
[394061732,1763238632161,-500.0,0.00016272,2]
[394061733,1763238632171,-471.68779282,0.00016272,2]
[394061734,1763238632182,-28.31220718,0.00016272,2]
[394061735,1763238632191,-500.0,0.00016272,2]
[394061736,1763238632204,-500.0,0.00016272,2]
[394061737,1763238632214,-500.0,0.00016272,2]
[394061738,1763238632223,-500.0,0.00016272,2]
[394061739,1763238632232,-53.44664974,0.00016272,2]
[394061740,1763238632243,-298.07405509,0.00016272,2]
[394061742,1763238632252,-58.59594491,0.00016272,2]
[394061744,1763238632263,-441.40405509,0.00016272,2]
[394061746,1763238632272,-500.0,0.00016272,2]
[394061748,1763238632282,-500.0,0.00016272,2]
[394061749,1763238632291,-552.16510927,0.00016272,2]
[394061750,1763238632300,-500.0,0.00016272,2]
[394061751,1763238632310,-55.16948713,0.00016272,2]
[394061752,1763238632329,-444.83051287,0.00016272,2]
[394061753,1763238632339,-500.0,0.00016272,2]
[394061754,1763238632349,-500.0,0.00016272,2]
[394061755,1763238632358,-500.0,0.00016272,2]
[394061756,1763238632367,-500.0,0.00016272,2]
[394061757,1763238632377,-500.0,0.00016273,2]
[394061758,1763238632387,-1955.16948713,0.00016273,2]
[394061759,1763238632398,-2035.91509781,0.00016273,2]
[394061760,1763238632410,-1656.67488001,0.00016273,2]
[394061761,1763238632427,-449.454,0.00016272,2]
[394061762,1763238632438,-50.546,0.00016272,2]
[394061763,1763238632448,-13904.7302251,0.00016273,2]
[394061764,1763238632457,-306.2279349,0.00016273,2]
[394061765,1763238632478,-500.0,0.00016272,2]
[394061766,1763238632488,-148.96161932,0.00016272,2]
[394061767,1763238632509,-351.03838068,0.00016272,2]
[394061768,1763238632519,-500.0,0.00016272,2]
[394061769,1763238632528,-320.83213875,0.00016272,2]
[394061770,1763238632539,-179.16786125,0.00016272,2]
[394061771,1763238632552,-207.94853871,0.00016273,2]
[394061781,1763238637619,-500.0,0.00016272,2]
[394061783,1763238637628,-191.20796414,0.00016272,2]
[394061789,1763238637675,-308.79203586,0.00016272,2]
[394061790,1763238637685,-500.0,0.00016272,2]
[394061791,1763238637694,-500.0,0.00016272,2]
[394061792,1763238637703,-500.0,0.00016272,2]
[394061793,1763238637712,-450.0,0.00016272,2]
[394061794,1763238637722,-500.0,0.00016272,2]
[394061795,1763238637731,-347.13729594,0.00016272,2]
[394061796,1763238637841,-152.86270406,0.00016272,2]
[394061797,1763238637851,-500.0,0.00016272,2]
[394061798,1763238637860,-500.0,0.00016272,2]
[394061799,1763238637868,-500.0,0.00016272,2]
[394061800,1763238637878,-500.0,0.00016272,2]
[394061801,1763238637887,-500.0,0.00016272,2]
[394061802,1763238637897,-41892.89308555,0.00016273,2]
[394061803,1763238637906,-153.53557497,0.00016273,2]
[394061804,1763238637916,-1015.51,0.00016289,2]
[394061805,1763238637926,-150.0,0.00016338,2]
[394061806,1763238637935,-151.0,0.00016355,2]
[394061807,1763238637944,-151.0,0.00016355,2]
[394061808,1763238637953,-151.0,0.00016355,2]
[394061810,1763238637962,-151.0,0.00016355,2]
[394061811,1763238637971,-151.0,0.00016355,2]
[394061812,1763238637980,-151.0,0.00016355,2]
[394061813,1763238637989,-151.0,0.00016355,2]
[394061814,1763238637998,-151.0,0.00016355,2]
[394061815,1763238638007,-229.89398899,0.00016355,2]
[394061816,1763238638016,-151.0,0.00016355,2]
[394061817,1763238638025,-151.0,0.00016355,2]
[394061818,1763238638035,-151.0,0.00016355,2]
[394061819,1763238638044,-151.0,0.00016355,2]
[394061820,1763238638053,-151.0,0.00016355,2]
[394061821,1763238638063,-151.0,0.00016355,2]
[394061822,1763238638072,-151.0,0.00016355,2]
[394061823,1763238638081,-151.0,0.00016355,2]
[394061824,1763238638091,-151.0,0.00016355,2]
[394061825,1763238638100,-151.0,0.00016355,2]
[394061826,1763238638109,-151.0,0.00016355,2]
[394061827,1763238638119,-151.0,0.00016355,2]
[394061828,1763238638128,-151.0,0.00016355,2]
[394061829,1763238638137,-151.0,0.00016355,2]
[394061830,1763238638147,-151.0,0.00016355,2]
[394061831,1763238638156,-151.0,0.00016355,2]
[394061832,1763238638166,-151.0,0.00016355,2]
[394061833,1763238638175,-151.0,0.00016355,2]
[394061834,1763238638184,-151.0,0.00016355,2]
[394061835,1763238638193,-473.89,0.00016364,2]
[394061836,1763238638202,-137259.67839943,0.00016365,2]
[394061839,1763238639699,-160.23918297,0.00016273,2]
[394061840,1763238639709,-5146.32791305,0.00016365,2]
[394061841,1763238639864,-261.84829654,0.00016365,2]
[394061842,1763238639875,-11075.13159059,0.00016365,2]
[394061843,1763238639886,-102753.13215376,0.00016365,2]
[394061844,1763238639897,-241694.68664663,0.00016365,2]
[394061845,1763238639906,-500.0,0.00016373,2]
[394061846,1763238639916,-164.64173953,0.00016373,2]
[394061847,1763238639926,-506.60742957,0.00016373,2]
[394061848,1763238639936,-500.15092929,0.00016373,2]
[394061849,1763238639945,-500.0,0.00016373,2]
[394061850,1763238639955,-500.0,0.00016373,2]
[394061851,1763238639964,-500.0,0.00016373,2]
[394061852,1763238639973,-328.75722686,0.00016373,2]
[394061853,1763238639983,-500.0,0.00016373,2]
[394061854,1763238639992,-500.0,0.00016373,2]
[394061855,1763238640001,-500.0,0.00016373,2]
[394061856,1763238640010,-500.0,0.00016373,2]
[394061857,1763238640019,-500.0,0.00016373,2]
[394061858,1763238640028,-500.0,0.00016373,2]
[394061859,1763238640037,-637.70452293,0.00016373,2]
[394061860,1763238640046,-500.0,0.00016373,2]
[394061861,1763238640056,-500.0,0.00016373,2]
[394061862,1763238640065,-500.0,0.00016373,2]
[394061863,1763238640075,-607.54870183,0.00016373,2]
[394061864,1763238640084,-503.00814931,0.00016373,2]
[394061865,1763238640093,-164.58649502,0.00016373,2]
[394061866,1763238640102,-388.91982009,0.00016373,2]
[394061867,1763238640111,-222.2113773,0.00016412,2]
[394061868,1763238640120,-254.59,0.0001644,2]
[394061869,1763238640130,-875.66209486,0.00016464,2]
[394061870,1763238640139,-1000.0,0.00016481,2]
[394061871,1763238640148,-151.0,0.00016503,2]
[394061872,1763238640157,-151.0,0.00016514,2]
[394061873,1763238640167,-151.0,0.00016527,2]
[394061874,1763238640176,-151.0,0.00016539,2]
[394061875,1763238640185,-5895.50270909,0.00016564,2]
[394061876,1763238640194,-1000.0,0.00016564,2]
[394061877,1763238640203,-473.89,0.00016638,2]
[394061878,1763238640212,-169.4,0.00016658,2]
[394061879,1763238640222,-169.4,0.00016658,2]
[394061880,1763238640231,-533.55461923,0.00016664,2]
[394061881,1763238640240,-500.0,0.00016664,2]
[394061882,1763238640249,-500.0,0.00016664,2]
[394061883,1763238640259,-500.0,0.00016664,2]
[394061884,1763238640268,-500.0,0.00016664,2]
[394061885,1763238640277,-500.0,0.00016664,2]
[394061886,1763238640286,-3332.07539816,0.0001674,2]
[394061887,1763238640295,-300.0,0.00016772,2]
[394061888,1763238640304,-500.0,0.00016821,2]
[394061889,1763238640313,-14620.01405268,0.00016826,2]
[394061890,1763238640322,-209.39696604,0.00016869,2]
[394061891,1763238640331,-166.68,0.00016879,2]
[394061892,1763238640340,-500.0,0.00016899,2]
[394061893,1763238640349,-169.54689343,0.000169,2]
[394061894,1763238640359,-370.9735104,0.000169,2]
[394061895,1763238640368,-4231.68752817,0.000169,2]
[394061896,1763238640377,-473.89,0.00016912,2]
[394061897,1763238640387,-615.21991021,0.00016921,2]
[394061898,1763238640396,-500.0,0.00016921,2]
[394061899,1763238640406,-1000.0,0.00016921,2]
[394061900,1763238640415,-515.12719469,0.00016973,2]
[394061901,1763238640425,-500.0,0.00016973,2]
[394061902,1763238640434,-500.0,0.00016973,2]
[394061903,1763238640443,-500.0,0.00016973,2]
[394061904,1763238640452,-500.0,0.00016973,2]
[394061905,1763238640462,-501.60703041,0.00016973,2]
[394061906,1763238640472,-500.0,0.00016973,2]
[394061907,1763238640482,-500.0,0.00016973,2]
[394061908,1763238640491,-500.0,0.00016973,2]
[394061909,1763238640500,-500.0,0.00016973,2]
[394061910,1763238640510,-200.0,0.00016973,2]
[394061911,1763238640519,-500.0,0.00016973,2]
[394061912,1763238640528,-500.0,0.00016973,2]
[394061913,1763238640538,-218.98503512,0.00016973,2]
[394061914,1763238640548,-500.0,0.00016973,2]
[394061915,1763238640559,-500.0,0.00016973,2]
[394061916,1763238640568,-500.0,0.00016973,2]
[394061917,1763238640578,-500.0,0.00016973,2]
[394061918,1763238640589,-327.2888011,0.00016973,2]
[394061919,1763238640598,-500.0,0.00016973,2]
[394061920,1763238640607,-500.0,0.00016973,2]
[394061921,1763238640617,-381.41604669,0.0001699,2]
[394061922,1763238640628,-500.0,0.00016999,2]
[394061923,1763238640637,-2813.0,0.00017,2]
[394061924,1763238640646,-143599.26917136,0.00017,2]
[394061925,1763238640658,-666726.89453316,0.00017,2]
[394061926,1763238640669,-250.0,0.00017,2]
[394061927,1763238640678,-408495.78527296,0.00017,2]
[394061928,1763238640690,-3182.27909999,0.00017,2]
[394061930,1763238640711,-1116.10184179,0.00017,2]
[394061945,1763238644196,-444.471027,0.00017,2]
[394061946,1763238644254,-416.14,0.00017,2]
[394061947,1763238644313,-71034.44899719,0.00017,2]
[394061948,1763238644388,150.5,0.0002602,120]
[394061957,1763238644876,150.5,0.0002601,120]
[394061959,1763238645599,150.5,0.00026,120]
[394061960,1763238645941,-4791.0,0.00017,2]
[394061961,1763238646029,150.5,0.0003013,120]
[394061962,1763238646106,-11059.64464555,0.00017,2]
[394061963,1763238646165,-6213.46948407,0.00017,2]
[394061965,1763238646177,-499.23651593,0.00017,2]
[394061966,1763238646459,150.5,0.0003012,120]
[394061967,1763238646892,275.06,0.0003011,120]
[394062020,1763238916821,391.0,0.00028879,120]
[394062032,1763238998063,999.0,0.00016759,3]
[394062055,1763239208141,235.0,0.00029038,120]
[394062098,1763239507919,176.0,0.00029121,120]
[394062121,1763239740868,150.0,0.00030129,120]
[394062129,1763239806083,176.0,0.00029295,120]
[394062135,1763239831912,-200.0,0.00016191,2]
[394062136,1763239831922,-321.1,0.00016262,2]
[394062137,1763239831932,-45.15609508,0.00016438,2]
[394062138,1763239831943,-640.82167638,0.00016438,2]
[394062139,1763239831969,-391.2107439,0.00016438,2]
[394062140,1763239831980,-1991.80148464,0.00016438,2]
[394062141,1763239831989,-912.34174897,0.00016516,2]
[394062142,1763239832000,-87.65825103,0.00016516,2]
[394062143,1763239832009,-500.0,0.00016767,2]
[394062144,1763239832018,-748.15069929,0.00016773,2]
[394062145,1763239832029,-1528.36930071,0.00016773,2]
[394062146,1763239832038,-28879.6721,0.00016797,2]
[394062147,1763239832047,-300.0,0.00016799,2]
[394062148,1763239832056,-1200.0,0.00016799,2]
[394062149,1763239832065,-300.0,0.00016799,2]
[394062150,1763239832075,-5734.74381418,0.000168,2]
[394062151,1763239832088,-498.1250001,0.000168,2]
[394062152,1763239832099,-3277.4712252,0.000168,2]
[394062153,1763239832110,-990.0000006,0.000168,2]
[394062167,1763239837869,-499.99999999,0.00016799,2]
[394062168,1763239837879,-14.31658016,0.00016799,2]
[394062169,1763239837891,-485.68341984,0.00016799,2]
[394062170,1763239837900,-500.81386685,0.00016799,2]
[394062171,1763239837911,-622.10157081,0.00016799,2]
[394062172,1763239837920,-500.0,0.00016799,2]
[394062173,1763239837930,-500.0,0.00016799,2]
[394062174,1763239837939,-500.0,0.00016799,2]
[394062175,1763239837948,-369.64213549,0.00016799,2]
[394062176,1763239837958,-500.0,0.00016799,2]
[394062177,1763239837967,-500.0,0.00016799,2]
[394062178,1763239837977,-500.0,0.00016799,2]
[394062179,1763239837986,-500.0,0.00016799,2]
[394062180,1763239837995,-500.0,0.00016799,2]
[394062181,1763239838004,-221.0934478,0.00016799,2]
[394062182,1763239838014,-500.0,0.00016799,2]
[394062183,1763239838023,-500.0,0.00016799,2]
[394062184,1763239838032,-500.0,0.00016799,2]
[394062185,1763239838041,-500.0,0.00016799,2]
[394062186,1763239838051,-500.0,0.00016799,2]
[394062187,1763239838060,-500.0,0.00016799,2]
[394062188,1763239838069,-500.0,0.00016799,2]
[394062189,1763239838078,-500.0,0.00016799,2]
[394062190,1763239838090,-500.0,0.00016799,2]
[394062191,1763239838100,-500.0,0.00016799,2]
[394062192,1763239838109,-1262.86995252,0.000168,2]
[394062193,1763239838122,-819.81225726,0.000168,2]
[394062194,1763239838133,-5272.03339901,0.000168,2]
[394062195,1763239838143,-222.2113773,0.00016843,2]
[394062196,1763239838152,-500.0,0.00016873,2]
[394062199,1763239838166,-1000.0,0.00016889,2]
[394062201,1763239838176,-277.35679052,0.0001689,2]
[394062203,1763239838185,-160.23918297,0.00016897,2]
[394062206,1763239838194,-153.87599055,0.00016897,2]
[394062209,1763239838208,-315.93,0.00016899,2]
[394062211,1763239838217,-500.0,0.00016899,2]
[394062213,1763239838227,-502.84416904,0.00016973,2]
[394062215,1763239838236,-500.0,0.00016973,2]
[394062217,1763239838244,-502.82717258,0.00016973,2]
[394062219,1763239838253,-502.34464455,0.00016973,2]
[394062221,1763239838263,-500.0,0.00016973,2]
[394062223,1763239838272,-500.0,0.00016973,2]
[394062225,1763239838281,-328.66640437,0.00016973,2]
[394062227,1763239838290,-435.6540826,0.00016987,2]
[394062229,1763239838299,-500.0,0.00016987,2]
[394062231,1763239838308,-250.0,0.00016987,2]
[394062233,1763239838318,-500.0,0.00016987,2]
[394062235,1763239838327,-250.0,0.00016987,2]
[394062237,1763239838336,-500.0,0.00016987,2]
[394062239,1763239838346,-250.0,0.00016987,2]
[394062241,1763239838355,-500.0,0.00016987,2]
[394062243,1763239838364,-250.0,0.00016987,2]
[394062245,1763239838373,-151.0,0.00016987,2]
[394062247,1763239838383,-574.12855637,0.00016987,2]
[394062249,1763239838393,-500.0,0.00016987,2]
[394062251,1763239838402,-151.0,0.00016987,2]
[394062253,1763239838412,-250.0,0.00016987,2]
[394062255,1763239838422,-500.0,0.00016987,2]
[394062257,1763239838431,-151.0,0.00016987,2]
[394062259,1763239838440,-250.0,0.00016987,2]
[394062261,1763239838450,-500.0,0.00016987,2]
[394062263,1763239838459,-151.0,0.00016987,2]
[394062265,1763239838468,-250.0,0.00016987,2]
[394062267,1763239838477,-500.0,0.00016987,2]
[394062269,1763239838487,-151.0,0.00016987,2]
[394062271,1763239838496,-250.0,0.00016987,2]
[394062273,1763239838506,-250.0,0.00016987,2]
[394062275,1763239838515,-156.48958611,0.00016987,2]
[394062277,1763239838525,-151.0,0.00016987,2]
[394062279,1763239838534,-250.0,0.00016987,2]
[394062281,1763239838543,-250.0,0.00016987,2]
[394062283,1763239838552,-151.0,0.00016987,2]
[394062285,1763239838561,-250.0,0.00016987,2]
[394062287,1763239838570,-250.0,0.00016987,2]
[394062289,1763239838579,-250.0,0.00016987,2]
[394062291,1763239838589,-151.0,0.00016987,2]
[394062293,1763239838598,-250.0,0.00016987,2]
[394062295,1763239838607,-250.0,0.00016987,2]
[394062297,1763239838616,-250.0,0.00016987,2]
[394062299,1763239838626,-151.0,0.00016987,2]
[394062301,1763239838635,-250.0,0.00016987,2]
[394062303,1763239838644,-250.0,0.00016987,2]
[394062305,1763239838654,-250.0,0.00016987,2]
[394062307,1763239838666,-151.0,0.00016987,2]
[394062309,1763239838675,-250.0,0.00016987,2]
[394062311,1763239838684,-250.0,0.00016987,2]
[394062313,1763239838693,-250.0,0.00016987,2]
[394062315,1763239838703,-151.0,0.00016987,2]
[394062317,1763239838712,-250.0,0.00016987,2]
[394062319,1763239838722,-250.0,0.00016987,2]
[394062321,1763239838731,-250.0,0.00016987,2]
[394062323,1763239838740,-153.37115995,0.00016987,2]
[394062325,1763239838750,-250.0,0.00016987,2]
[394062327,1763239838759,-250.0,0.00016987,2]
[394062329,1763239838768,-250.0,0.00016987,2]
[394062331,1763239838777,-250.0,0.00016987,2]
[394062333,1763239838787,-250.0,0.00016987,2]
[394062335,1763239838797,-250.0,0.00016987,2]
[394062337,1763239838807,-250.0,0.00016987,2]
[394062339,1763239838817,-250.0,0.00016987,2]
[394062341,1763239838827,-250.0,0.00016987,2]
[394062343,1763239838836,-250.0,0.00016987,2]
[394062345,1763239838846,-250.0,0.00016987,2]
[394062347,1763239838855,-250.0,0.00016987,2]
[394062349,1763239838865,-250.0,0.00016987,2]
[394062351,1763239838876,-250.0,0.00016987,2]
[394062353,1763239838886,-250.0,0.00016987,2]
[394062355,1763239838896,-250.0,0.00016987,2]
[394062357,1763239838907,-250.0,0.00016987,2]
[394062359,1763239838918,-250.0,0.00016987,2]
[394062361,1763239838928,-250.0,0.00016987,2]
[394062362,1763239838939,-250.0,0.00016987,2]
[394062364,1763239838949,-151.0,0.00016987,2]
[394062366,1763239838959,-250.0,0.00016987,2]
[394062368,1763239838970,-250.0,0.00016987,2]
[394062370,1763239838980,-151.0,0.00016987,2]
[394062372,1763239838990,-250.0,0.00016987,2]
[394062374,1763239839000,-151.0,0.00016987,2]
[394062376,1763239839010,-250.0,0.00016987,2]
[394062378,1763239839021,-151.0,0.00016987,2]
[394062381,1763239839031,-250.0,0.00016987,2]
[394062382,1763239839040,-151.0,0.00016987,2]
[394062385,1763239839050,-250.0,0.00016987,2]
[394062386,1763239839060,-151.0,0.00016987,2]
[394062389,1763239839069,-250.0,0.00016987,2]
[394062390,1763239839081,-151.0,0.00016987,2]
[394062393,1763239839093,-250.0,0.00016987,2]
[394062395,1763239839102,-151.0,0.00016987,2]
[394062396,1763239839111,-250.0,0.00016987,2]
[394062398,1763239839121,-151.0,0.00016987,2]
[394062400,1763239839133,-250.0,0.00016987,2]
[394062403,1763239839143,-151.0,0.00016987,2]
[394062404,1763239839152,-250.0,0.00016987,2]
[394062407,1763239839165,-151.0,0.00016987,2]
[394062409,1763239839175,-250.0,0.00016987,2]
[394062411,1763239839185,-250.0,0.00016987,2]
[394062413,1763239839195,-250.0,0.00016987,2]
[394062415,1763239839205,-250.0,0.00016987,2]
[394062417,1763239839215,-250.0,0.00016987,2]
[394062418,1763239839224,-322.6107,0.00016987,2]
[394062420,1763239839234,-358.84352963,0.00016996,2]
[394062423,1763239839244,-500.0,0.00016996,2]
[394062425,1763239839253,-500.0,0.00016996,2]
[394062427,1763239839263,-14249.9579676,0.00016997,2]
[394062429,1763239839272,-428716.2936416,0.00016997,2]
[394062431,1763239839281,-50270.6686532,0.00016997,2]
[394062432,1763239839290,-4617.3959138,0.00016997,2]
[394062435,1763239839299,-500.0,0.00016998,2]
[394062437,1763239839311,-500.0,0.00016999,2]
[394062439,1763239839320,-160565.99829374,0.00017,2]
[394062441,1763239839329,-160.0,0.00017,2]
[394062443,1763239839338,-250.0,0.00017,2]
[394062444,1763239839348,-150.0,0.00017076,2]
[394062447,1763239839357,-300.0,0.00017076,2]
[394062449,1763239839367,-315.93,0.00017173,2]
[394062450,1763239839384,-207.47,0.00017262,2]
[394062452,1763239839394,-169.4,0.000173,2]
[394062454,1763239839404,-849.89127994,0.00017421,2]
[394062456,1763239839414,-315.93194462,0.00017447,2]
[394062458,1763239839425,-168.0,0.00017468,2]
[394062460,1763239839435,-1014.86475815,0.00017521,2]
[394062461,1763239839445,-595.37131296,0.00017535,2]
[394062477,1763239839639,-3430.0,0.0001765,2]
[394062479,1763239839649,-1318.0,0.0001765,2]
[394062481,1763239839659,-575.0,0.0001765,2]
[394062483,1763239839668,-608.0,0.0001765,2]
[394062485,1763239839678,-821.0,0.0001765,2]
[394062487,1763239839687,-1598.0,0.0001765,2]
[394062489,1763239839697,-793.0,0.0001765,2]
[394062491,1763239839706,-1275.0,0.0001765,2]
[394062493,1763239839716,-783.094,0.0001765,2]
[394062495,1763239839725,-6487.0,0.0001765,2]
[394062497,1763239839735,-560.0,0.0001765,2]
[394062499,1763239839744,-1603.0,0.0001765,2]
[394062501,1763239839753,-385.86,0.00017763,2]
[394062503,1763239839764,-4331.34404,0.000178,2]
[394062505,1763239839773,-4331.34405,0.000178,2]
[394062507,1763239839782,-4331.34404,0.000178,2]
[394062509,1763239839792,-150.0,0.00017805,2]
[394062511,1763239839802,-150.0,0.00017805,2]
[394062513,1763239839811,-169.0,0.00017805,2]
[394062515,1763239839820,-150.0,0.00017805,2]
[394062518,1763239839830,-150.0,0.00017805,2]
[394062520,1763239839839,-150.0,0.00017805,2]
[394062522,1763239839848,-150.0,0.00017805,2]
[394062524,1763239839858,-4331.34405,0.0001781,2]
[394062526,1763239839867,-4331.34404,0.0001781,2]
[394062528,1763239839876,-4331.34405,0.0001781,2]
[394062530,1763239839885,-195.0,0.0001781,2]
[394062532,1763239839895,-218.87434665,0.0001781,2]
[394062534,1763239839904,-195.0,0.0001781,2]
[394062536,1763239839914,-1181.81384417,0.00017834,2]
[394062538,1763239839923,-168.0,0.00017858,2]
[394062540,1763239839933,-168.0,0.00017873,2]
[394062542,1763239839943,-317.97729462,0.00017928,2]
[394062544,1763239839952,-163.98407721,0.00017973,2]
[394062546,1763239839961,-150.62753141,0.00017973,2]
[394062548,1763239839971,-162.44434899,0.00017973,2]
[394062550,1763239839980,-168.0,0.00017983,2]
[394062552,1763239839989,-254.27736446,0.0001799,2]
[394062554,1763239839998,-504.0,0.00017995,2]
[394062556,1763239840007,-500.0,0.00017999,2]
[394062558,1763239840016,-500.0,0.00017999,2]
[394062560,1763239840025,-500.0,0.00017999,2]
[394062562,1763239840034,-500.0,0.00017999,2]
[394062564,1763239840043,-500.0,0.00017999,2]
[394062566,1763239840052,-500.0,0.00017999,2]
[394062568,1763239840061,-500.0,0.00017999,2]
[394062570,1763239840070,-500.0,0.00017999,2]
[394062572,1763239840082,-500.0,0.00017999,2]
[394062574,1763239840092,-500.0,0.00017999,2]
[394062576,1763239840102,-500.0,0.00017999,2]
[394062578,1763239840111,-500.0,0.00017999,2]
[394062580,1763239840121,-2250.0,0.00018,2]
[394062582,1763239840130,-847018.11616484,0.00018,2]
[394062584,1763239840139,-168.0,0.00018028,2]
[394062586,1763239840148,-1000.0,0.00018082,2]
[394062588,1763239840157,-617.40005154,0.00018083,2]
[394062590,1763239840167,-300.0,0.00018142,2]
[394062592,1763239840176,-300.62660903,0.00018168,2]
[394062594,1763239840186,-300.0,0.00018168,2]
[394062596,1763239840195,-377.58633016,0.00018168,2]
[394062598,1763239840205,-250.0,0.00018168,2]
[394062600,1763239840213,-195.0,0.00018168,2]
[394062602,1763239840223,-207.47,0.00018171,2]
[394062604,1763239840232,-287.61899177,0.00018259,2]
[394062606,1763239840241,-1015.51,0.00018325,2]
[394062608,1763239840250,-420.0,0.00018352,2]
[394062610,1763239840261,-420.0,0.00018352,2]
[394062612,1763239840271,-334.5472959,0.00018356,2]
[394062614,1763239840280,-168.0,0.00018359,2]
[394062616,1763239840289,-168.0,0.00018419,2]
[394062617,1763239840298,-504.0,0.00018434,2]
[394062619,1763239840307,-1680.0,0.00018443,2]
[394062621,1763239840316,-168.0,0.00018469,2]
[394062623,1763239840325,-863.0,0.00018538,2]
[394062625,1763239840335,-1000.0,0.00018581,2]
[394062627,1763239840344,-168.0,0.00018585,2]
[394062629,1763239840353,-168.0,0.00018604,2]
[394062631,1763239840362,-168.0,0.0001861,2]
[394062633,1763239840371,-640.24385345,0.00018631,2]
[394062635,1763239840381,-168.0,0.00018648,2]
[394062637,1763239840390,-4617.3959138,0.0001871,2]
[394062639,1763239840399,-1000.0,0.0001876,2]
[394062641,1763239840409,-166.66,0.00018773,2]
[394062643,1763239840418,-150.4,0.000188,2]
[394062645,1763239840427,-150.4,0.000188,2]
[394062647,1763239840436,-150.4,0.000188,2]
[394062649,1763239840446,-150.4,0.000188,2]
[394062651,1763239840456,-150.4,0.000188,2]
[394062653,1763239840465,-150.4,0.000188,2]
[394062655,1763239840474,-150.4,0.000188,2]
[394062657,1763239840484,-150.4,0.000188,2]
[394062659,1763239840494,-168.0,0.00018812,2]
[394062661,1763239840503,-168.0,0.00018854,2]
[394062663,1763239840512,-2000.0,0.000189,2]
[394062665,1763239840522,-168.0,0.00018912,2]
[394062667,1763239840531,-168.0,0.00018934,2]
[394062669,1763239840541,-342.34491125,0.00018942,2]
[394062671,1763239840551,-168.0,0.00018958,2]
[394062673,1763239840560,-279.24843912,0.00019,2]
[394062675,1763239840570,-300.0,0.00019,2]
[394062677,1763239840579,-164.89191954,0.00019,2]
[394062679,1763239840588,-223.33933207,0.00019,2]
[394062681,1763239840597,-354.90817882,0.0001901,7]
[394062683,1763239840607,-207.47,0.00019079,2]
[394062685,1763239840616,-3006.90779574,0.00019178,2]
[394062687,1763239840625,-151.0,0.00019178,2]
[394062689,1763239840634,-2333.71,0.00019178,2]
[394062691,1763239840644,-150.0,0.00019178,2]
[394062693,1763239840653,-663.93287602,0.00019179,2]
[394062695,1763239840663,-342.34491125,0.000192,2]
[394062697,1763239840672,-168.0,0.00019223,2]
[394062699,1763239840681,-1000.0,0.00019438,2]
[394062701,1763239840690,-342.34491125,0.00019459,2]
[394062703,1763239840699,-150.4,0.0001949,2]
[394062705,1763239840709,-1730.43454739,0.000195,7]
[394062707,1763239840718,-17855.05564887,0.00019527,2]
[394062709,1763239840727,-38736.88906526,0.00019613,2]
[394062711,1763239840736,-153.87599046,0.00019613,2]
[394062713,1763239840746,-298.26089446,0.00019628,2]